bitfinex-derivatives/quotes_SOLF0:USTF0_20250202
["timestamp","ask_amount","ask_price","bid_price","bid_amount"]
[1738518006844,0.03251773,205.49,205.45,0.03140442]
[1738518007049,23.41093493,205.47,205.45,0.03140442]
[1738518007245,23.41093493,205.47,205.38,4.8713]
[1738518007451,23.41093493,205.47,205.31,8.5434]
[1738518007648,0.03576547,205.48,205.44,4.935e-05]
[1738518008149,23.41093493,205.6,205.33,23.41093493]
[1738518008350,4.8684,205.52,205.32,4.8729]
[1738518008552,23.41093493,205.6,205.31,8.5434]
[1738518008745,23.41093493,205.48,205.31,8.5434]
[1738518009046,23.41093493,205.44,205.43,1.455e-05]
[1738518009243,23.41093493,205.44,205.29,3.0078]
[1738518009441,4.8713,205.4,205.29,3.0078]
[1738518009649,23.41093493,205.44,205.23,23.41093493]
[1738518009851,23.41093493,205.5,205.27,24.30533584]
[1738518010150,23.41093493,205.5,205.31,23.41093493]
[1738518010348,23.41093493,205.49,205.32,0.89440091]
[1738518010742,0.03266038,205.43,205.38,0.03270528]
[1738518011652,4.8709,205.41,205.38,0.03270528]
[1738518011851,23.41093493,205.42,205.38,0.03270528]
[1738518012047,23.41093493,205.42,205.38,5.28e-06]
[1738518012252,4.8712,205.4,205.38,5.28e-06]
[1738518012453,23.41093493,205.42,205.23,3.0096]
[1738518012752,4.8734,205.31,205.18,4.8761]
[1738518013051,23.41093493,205.32,205.11,34.91313493]
[1738518013251,4.874,205.28,205.26,190.25093387]
[1738518013446,28.28493493,205.28,205.26,153.76623387]
[1738518013747,28.28493493,205.28,205.26,15.72639723]
[1738518014045,4.874,205.28,205.27,0.89433882]
[1738518014250,0.03527267,205.29,205.27,0.89433882]
[1738518015051,0.03527267,205.29,205.25,0.0349458]
[1738518015752,4.8744,205.26,205.25,0.0349458]
[1738518015943,0.03527267,205.29,205.25,4.58e-05]
[1738518016148,23.41093493,205.26,205.2,8.462e-05]
[1738518016450,0.03527267,205.29,205.17,4.8765]
[1738518016745,4.8749,205.24,205.12,2.9538]
[1738518017045,23.41093493,205.3,205.17,4.8764]
[1738518017251,4.8756,205.21,205.18,0.89445938]
[1738518017452,23.41093493,205.3,205.19,0.89445938]
[1738518017747,0.03472125,205.2,205.19,4.876]
[1738518018050,4.874,205.28,205.19,0.89423756]
[1738518018251,23.41093493,205.3,205.13,0.89423756]
[1738518018551,23.41093493,205.34,205.17,0.03446693]
[1738518018753,142.48081203,205.4,205.18,0.89423756]
[1738518018948,4.21e-05,205.24,205.23,4.8751]
[1738518019151,4.21e-05,205.24,205.23,29.18027249]
[1738518019346,96.36,205.41,205.33,4.8727]
[1738518019652,96.36,205.41,205.34,0.89423756]
[1738518019851,96.36,205.41,205.33,4.8727]
[1738518020054,4.8709,205.41,205.34,0.89423756]
[1738518020254,23.41093493,205.44,205.28,0.89423756]
[1738518020454,6.57242646,205.52,205.35,0.03112436]
[1738518020650,6.57242646,205.52,205.36,0.89423756]
[1738518020852,23.41093493,205.5,205.36,0.89423756]
[1738518021356,52.77313773,205.55,205.3,23.41093493]
[1738518021357,23.41093493,205.54,205.37,0.89423756]
[1738518021549,23.41093493,205.54,205.42,4.8705]
[1738518021751,23.41093493,205.62,205.45,23.41093493]
[1738518021956,6.57242646,205.69,205.49,23.41093493]
[1738518022255,4.8646,205.68,205.5,0.89423756]
[1738518022457,0.03666742,205.56,205.5,3.84183756]
[1738518022652,0.03666742,205.56,205.52,4.8681]
[1738518022859,23.41093493,205.7,205.53,24.30517249]
[1738518023054,6.66742646,205.89,205.57,23.44181429]
[1738518023257,6.66742646,205.89,205.63,4.8654]
[1738518023457,4.8623,205.77,205.64,0.89423756]
[1738518023660,13.22742646,205.89,205.62,0.89423756]
[1738518023856,13.22742646,205.89,205.61,23.41093493]
[1738518024158,13.22742646,205.89,205.62,0.89308238]
[1738518024353,0.03439131,205.73,205.69,0.03335102]
[1738518024550,4.89779131,205.73,205.69,0.03335102]
[1738518024752,0.03439131,205.73,205.69,0.03335102]
[1738518025260,23.41093493,205.84,205.69,0.03335102]
[1738518025560,23.41093493,205.88,205.69,23.44428595]
[1738518025960,6.57242646,205.89,205.83,4.8607]
[1738518026261,2.646e-05,205.82,205.77,23.41093493]
[1738518026457,2.646e-05,205.82,205.73,23.41093493]
[1738518026651,2.646e-05,205.82,205.66,8.613]
[1738518026652,51.65487508,205.86,205.84,0.03124828]
[1738518026958,34.83077508,205.86,205.85,28.27133493]
[1738518027260,34.83077508,205.86,205.81,23.41093493]
[1738518027459,34.83077508,205.86,205.73,23.41093493]
[1738518027662,34.83077508,205.86,205.83,0.03128203]
[1738518028160,153.27663721,205.88,205.85,23.41093493]
[1738518028357,42.18889483,205.88,205.85,23.41093493]
[1738518028660,0.0317041,205.87,205.86,4.8602]
[1738518028959,0.0317041,205.87,205.85,23.41093493]
[1738518029159,0.0317041,205.87,205.86,23.41093493]
[1738518029359,0.0317041,205.87,205.82,0.03697733]
[1738518029560,0.0317041,205.87,205.85,23.41093493]
[1738518030960,0.0317041,205.87,205.82,0.03697733]
[1738518031560,9.22312094,205.98,205.86,23.41093493]
[1738518031755,10.43770395,205.97,205.92,23.41093493]
[1738518031960,14.589091,205.96,205.92,23.41093493]
[1738518032160,4.71144528,206.03,205.92,23.41093493]
[1738518032354,11.60060956,206.02,205.98,23.41093493]
[1738518032561,3.15891513,206.01,205.94,23.41093493]
[1738518032758,1.21496736,206.0,205.9,23.41093493]
[1738518032962,1.21496736,205.99,205.98,0.03249884]
[1738518033564,23.41093493,206.1,205.94,23.41093493]
[1738518033764,23.41093493,206.14,205.98,23.41093493]
[1738518033971,0.03355186,206.01,205.98,23.41093493]
[1738518034171,0.84027009,206.14,206.0,23.41093493]
[1738518034372,5.3426,206.15,206.05,23.41093493]
[1738518034571,0.84039074,206.14,206.05,23.41093493]
[1738518034765,0.84039074,206.14,206.06,4.8554]
[1738518034971,0.84039074,206.16,206.05,23.41093493]
[1738518035171,0.84039074,206.15,206.05,23.41093493]
[1738518035376,264.27529696,206.3,206.13,23.41093493]
[1738518035576,71.1681734,206.17,206.13,23.41093493]
[1738518035774,71.1681734,206.17,206.15,4.8532]
[1738518036275,71.19909777,206.17,206.13,23.41093493]
[1738518036467,71.19909777,206.17,205.91,14.58]
[1738518036670,71.19909777,206.17,205.9,23.41093493]
[1738518036872,23.41093493,206.15,205.96,23.41093493]
[1738518037067,71.1681734,206.17,206.0,23.41093493]
[1738518037270,23.41093493,206.12,205.9,23.41093493]
[1738518037679,23.41093493,206.15,205.9,23.41093493]
[1738518037974,71.1681734,206.17,205.96,23.41093493]
[1738518038174,71.1681734,206.17,205.9,23.41093493]
[1738518038175,0.03672083,206.03,206.0,23.41093493]
[1738518038473,0.00274303,206.03,206.0,23.41093493]
[1738518038676,71.1681734,206.17,206.0,23.41093493]
[1738518038881,23.41093493,206.12,205.9,23.41093493]
[1738518039078,4.8566,206.02,205.89,4.8595]
[1738518039371,23.41093493,206.1,205.86,23.41093493]
[1738518039573,4.8552,206.08,205.94,4.8584]
[1738518039877,0.03739501,205.98,205.93,0.03088098]
[1738518040072,0.03739501,205.98,205.96,4.8578]
[1738518040270,0.8333225,206.09,205.94,23.41093493]
[1738518040468,2.8767,206.11,205.94,23.41093493]
[1738518040675,2.977e-05,205.99,205.95,0.03454773]
[1738518041071,2.977e-05,205.99,205.94,23.41093493]
[1738518041276,2.8767,206.11,205.94,23.41093493]
[1738518041476,0.83382041,206.1,205.9,23.41093493]
[1738518041676,0.83382041,206.1,206.05,4.8556]
[1738518041873,71.1681734,206.17,206.03,23.41093493]
[1738518042078,0.83387538,206.16,206.03,23.41093493]
[1738518042580,0.83387538,206.16,206.07,23.41093493]
[1738518042882,3.29e-06,206.12,206.11,4.8544]
[1738518043275,3.29e-06,206.12,206.07,23.41093493]
[1738518043576,3.29e-06,206.12,205.99,23.41093493]
[1738518043778,3.29e-06,206.12,205.95,23.41093493]
[1738518043977,23.41093493,206.11,205.91,96.12]
[1738518044280,0.83453012,206.1,206.03,0.03139867]
[1738518044473,0.03698872,206.06,206.03,0.03139867]
[1738518044873,0.03698872,206.06,205.86,29.87093493]
[1738518045075,4.8569,206.01,205.9,4.8593]
[1738518045273,23.41093493,206.03,206.02,0.03119141]
[1738518045475,5.3744,206.0,205.8,23.41093493]
[1738518045679,23.41093493,205.95,205.76,23.41093493]
[1738518045880,26.50863493,205.99,205.8,23.41093493]
[1738518046076,4.8578,205.97,205.86,4.8602]
[1738518046383,0.83437642,205.96,205.8,23.41093493]
[1738518046678,0.83437642,205.98,205.88,23.41093493]
[1738518046880,0.03077396,205.94,205.89,0.0374157]
[1738518047076,7.396e-05,205.94,205.89,0.0374157]
[1738518047272,7.396e-05,205.94,205.92,28.26973493]
[1738518047477,0.83431301,206.07,205.92,23.41093493]
[1738518047679,0.83431301,206.06,205.96,23.41093493]
[1738518047883,0.83431301,206.05,205.96,23.41093493]
[1738518048085,0.83431301,206.08,205.96,23.41093493]
[1738518048286,0.83431301,206.07,206.04,4.856]
[1738518048485,0.83431301,206.07,205.9,23.41093493]
[1738518048683,4.8569,206.01,205.87,4.8599]
[1738518048883,23.41093493,205.99,205.8,23.41093493]
[1738518049385,0.83431301,205.98,205.8,23.41093493]
[1738518049583,23.41093493,205.95,205.87,0.03137999]
[1738518049781,4.8598,205.88,205.87,0.03137999]
[1738518050087,0.83431301,205.88,205.72,23.41093493]
[1738518050278,4.8605,205.86,205.75,4.8628]
[1738518050478,0.83431301,205.85,205.69,1.17381007]
[1738518050683,23.41093493,205.83,205.69,1.17381007]
[1738518050890,5.2449,205.84,205.69,1.17381007]
[1738518050891,4.863,205.75,205.69,1.17381007]
[1738518051085,4.863,205.75,205.53,5.92926689]
[1738518051086,0.83431301,205.74,205.56,23.41093493]
[1738518051281,23.41093493,205.71,205.53,5.92926689]
[1738518051482,23.41093493,205.67,205.54,4.90688133]
[1738518051686,23.41093493,205.63,205.54,11.41740935]
[1738518051989,23.41093493,205.55,205.52,56.50363147]
[1738518052183,23.41093493,205.55,205.52,30.07793147]
[1738518052384,4.8673,205.57,205.52,30.07793147]
[1738518052579,23.41093493,205.53,205.5,130.30041913]
[1738518052780,23.41093493,205.53,205.37,5.92926689]
[1738518052993,23.41093493,205.49,205.38,22.55424447]
[1738518053190,23.41093493,205.53,205.39,12.74805122]
[1738518053490,23.41093493,205.59,205.4,22.55441992]
[1738518053691,23.41093493,205.49,205.41,22.55441992]
[1738518053995,23.41093493,205.45,205.42,22.54472681]
[1738518054289,23.41093493,205.45,205.43,0.88899662]
[1738518054492,23.41093493,205.45,205.43,0.03630785]
[1738518054690,4.8702,205.44,205.43,0.03630785]
[1738518055190,23.41093493,205.45,205.43,0.03630785]
[1738518055191,23.41093493,205.45,205.43,7.85e-06]
[1738518056591,23.41093493,205.44,205.38,0.04731476]
[1738518056790,23.41093493,205.39,205.31,5.92920807]
[1738518056992,23.41093493,205.35,205.32,9.1438943]
[1738518057192,23.41093493,205.35,205.33,16.17765915]
[1738518057390,23.41093493,205.35,205.34,16.1737615]
[1738518057591,23.41093493,205.35,205.34,9.1438943]
[1738518057898,23.41093493,205.39,205.34,3.51688242]
[1738518058092,0.0345906,205.37,205.35,3.51688242]
[1738518058394,23.41093493,205.43,205.36,8.80735686]
[1738518058597,23.41093493,205.43,205.37,3.51688242]
[1738518058796,4.8699,205.46,205.38,3.51688242]
[1738518059094,23.41093493,205.4,205.17,165.17339891]
[1738518059290,23.41093493,205.36,205.23,4.8751]
[1738518059493,23.41093493,205.36,205.17,165.17339891]
[1738518059690,23.41093493,205.36,205.18,0.8946117]
[1738518060093,0.0337208,205.32,205.27,0.03120026]
[1738518060291,23.41093493,205.31,205.27,0.03120026]
[1738518060497,23.41093493,205.3,205.13,10.44481591]
[1738518060699,23.41093493,205.31,205.13,10.44481591]
[1738518060892,0.0337208,205.32,205.25,4.8746]
[1738518061197,0.0337208,205.32,205.18,23.41093493]
[1738518061491,0.0337208,205.32,205.14,31.52935395]
[1738518061695,23.44465573,205.32,205.16,0.89407468]
[1738518061897,23.41093493,205.28,205.16,0.89407468]
[1738518062192,23.44465573,205.32,205.16,0.89407468]
[1738518062392,23.41093493,205.3,205.2,131.50261786]
[1738518062597,23.41093493,205.21,205.2,131.50261786]
[1738518062794,23.41093493,205.21,205.2,132.39675888]
[1738518063196,23.41093493,205.21,205.16,165.17339891]
[1738518063393,23.41093493,205.17,205.16,78.9615609]
[1738518063599,23.41093493,205.21,205.16,78.9615609]
[1738518063800,23.41093493,205.25,205.16,78.9615609]
[1738518063998,6.38,205.29,205.16,78.9615609]
[1738518064200,23.41093493,205.3,205.16,78.9615609]
[1738518064500,23.41093493,205.3,205.17,0.89415732]
[1738518064709,23.41093493,205.26,205.18,4.8763]
[1738518064905,23.41093493,205.26,205.17,0.89415732]
[1738518065103,23.41093493,205.22,205.21,0.03713694]
[1738518065496,23.41093493,205.22,205.21,3.694e-05]
[1738518066297,23.41093493,205.22,205.12,86.70572337]
[1738518066298,4.8774,205.14,205.12,86.70572337]
[1738518066602,23.41093493,205.14,205.04,266.47964516]
[1738518066803,23.41093493,205.14,205.07,203.08697869]
[1738518067002,23.41093493,205.19,205.07,198.20807869]
[1738518067209,23.41093493,205.23,205.07,198.20807869]
[1738518067502,23.41093493,205.23,205.12,0.89381034]
[1738518067711,0.03729698,205.24,205.12,0.89381034]
[1738518067901,23.41093493,205.19,205.12,0.89381034]
[1738518068106,23.41093493,205.15,205.12,0.89381034]
[1738518068404,23.41093493,205.15,205.11,325.70216679]
[1738518068605,23.41093493,205.15,205.11,289.74376696]
[1738518069209,23.41093493,205.15,205.11,182.44202487]
[1738518069405,4.8777,205.13,205.12,0.89397179]
[1738518070110,23.41093493,205.15,205.12,0.89397179]
[1738518070307,23.41093493,205.15,205.11,174.06452487]
[1738518070513,23.41093493,205.15,205.11,164.53562487]
[1738518070712,4.8777,205.13,205.11,157.09212487]
[1738518070913,23.41093493,205.12,205.11,103.23503532]
[1738518071212,23.41093493,205.12,205.11,4.121e-05]
[1738518071415,4.8781,205.11,205.1,101.0749929]
[1738518071614,28.28903493,205.11,205.1,100.0949929]
[1738518072015,28.28903493,205.11,205.1,86.3881929]
[1738518072215,4.8788,205.08,205.07,170.64370212]
[1738518072408,4.8788,205.08,205.07,171.53815317]
[1738518072719,23.41093493,205.1,205.07,171.53815317]
[1738518072916,4.8786,205.09,205.08,0.89445105]
[1738518073112,4.8786,205.09,205.07,170.64370212]
[1738518073319,19.5186,205.09,205.07,102.89853007]
[1738518073519,4.8786,205.09,205.07,94.55933007]
[1738518073718,23.44805228,205.1,205.07,94.55933007]
[1738518073915,23.44805228,205.1,205.07,71.31194717]
[1738518074114,4.8786,205.09,205.07,63.12314717]
[1738518074315,23.44805228,205.1,205.05,0.03502269]
[1738518074613,23.41093493,205.06,205.04,211.9459746]
[1738518074813,38.05093493,205.05,205.04,135.91420215]
[1738518075015,38.05093493,205.05,204.99,22.84974124]
[1738518075220,14.64,204.96,204.9,333.09955645]
[1738518075419,23.41093493,204.91,204.9,333.09955645]
[1738518075615,23.41093493,204.91,204.9,333.07765645]
[1738518075815,23.41093493,204.91,204.9,333.97246977]
[1738518076016,28.29373493,204.91,204.9,325.95686977]
[1738518076217,28.29373493,204.91,204.9,301.49695645]
[1738518076520,28.29373493,204.91,204.9,282.97865645]
[1738518077020,66.34466986,204.91,204.9,240.51804182]
[1738518077316,158.04186986,204.91,204.81,57.86763113]
[1738518077516,28.29593493,204.82,204.81,20.22627443]
[1738518077711,38.05093493,204.82,204.62,1.96001569]
[1738518077915,28.29723493,204.77,204.62,1.96001569]
[1738518078113,29.65093493,204.77,204.62,1.96001569]
[1738518078416,29.65093493,204.77,204.63,0.89408491]
[1738518078612,29.65093493,204.77,204.64,5.78328491]
[1738518078819,0.03229737,204.72,204.67,0.03537544]
[1738518079913,0.03229737,204.72,204.67,0.92927191]
[1738518080119,9.737e-05,204.72,204.69,23.41093493]
[1738518080420,9.737e-05,204.72,204.7,5.78159647]
[1738518080621,9.737e-05,204.72,204.71,0.89389647]
[1738518081016,9.737e-05,204.72,204.71,2.85391216]
[1738518081415,23.41093493,204.89,204.71,2.85391216]
[1738518081617,96.58,204.91,204.73,23.41093493]
[1738518081817,11.01108094,204.9,204.74,0.89457364]
[1738518082120,11.01098711,204.89,204.77,23.41093493]
[1738518082314,11.01098711,204.88,204.78,0.89457364]
[1738518082515,11.01098711,204.87,204.78,2.85458933]
[1738518082714,4.91124698,204.88,204.81,23.41093493]
[1738518082914,4.67991268,204.95,204.85,23.41093493]
[1738518083115,7.819e-05,204.94,204.85,23.41093493]
[1738518083414,10.53183027,204.97,204.89,23.41093493]
[1738518083619,7.85877875,204.93,204.9,4.883]
[1738518083820,7.875e-05,204.93,204.89,23.41093493]
[1738518084317,7.875e-05,204.93,204.92,4.8826]
[1738518084528,357.89212865,204.96,204.94,23.41093493]
[1738518084721,349.03462865,204.96,204.94,23.41093493]
[1738518084921,191.59252056,204.96,204.95,6.84191569]
[1738518085117,120.4056961,204.96,204.95,6.84191569]
[1738518085318,89.26420655,204.96,204.95,6.84191569]
[1738518085518,31.93531841,204.96,204.95,28.29283493]
[1738518085722,31.93531841,204.96,204.95,4.8819]
[1738518085923,31.93531841,204.96,204.95,28.29283493]
[1738518086126,0.85594983,205.15,205.12,4.8776]
[1738518086327,3.353e-05,205.14,205.0,23.41093493]
[1738518086624,0.98,205.27,205.13,23.41093493]
[1738518086826,0.97437396,205.26,205.17,23.41093493]
[1738518087226,0.97437396,205.26,205.13,23.41093493]
[1738518087521,0.03750703,205.24,205.19,0.03436299]
[1738518087720,0.97451639,205.23,205.19,0.03436299]
[1738518088120,0.97451639,205.23,205.17,23.41093493]
[1738518088321,0.97451639,205.23,205.19,0.03207367]
[1738518088622,1.00936296,205.23,205.19,0.03207367]
[1738518088825,1.00936296,205.23,205.21,23.41093493]
[1738518089023,217.66369506,205.22,205.21,23.30784596]
[1738518089224,217.66369506,205.22,205.19,0.03207367]
[1738518089420,63.82515314,205.22,205.21,23.41093493]
[1738518089621,7.21e-06,205.23,205.21,23.41093493]
[1738518089824,69.45353628,205.22,205.21,4.8757]
[1738518090025,41.44773628,205.22,205.21,4.8757]
[1738518090238,7.21e-06,205.23,205.21,4.8757]
[1738518090530,0.97380465,205.38,205.36,23.41093493]
[1738518090927,0.97380465,205.38,205.36,28.28293493]
[1738518091125,4.65e-06,205.38,205.37,23.41093493]
[1738518091427,23.41093493,205.52,205.33,23.41093493]
[1738518091627,23.41093493,205.48,205.33,23.41093493]
[1738518091833,0.03607115,205.4,205.35,0.03461427]
[1738518092328,0.03607115,205.4,205.29,23.41093493]
[1738518092526,27.20246158,205.37,205.23,105.05011182]
[1738518092726,27.20246158,205.37,205.23,3.04088087]
[1738518093223,50.61339651,205.37,205.16,23.41093493]
[1738518093423,23.41093493,205.3,205.07,23.41093493]
[1738518093631,23.41093493,205.26,205.03,24.58848212]
[1738518093832,0.98,205.29,205.12,23.41093493]
[1738518094025,0.98,205.29,205.04,0.97541943]
[1738518094026,0.98,205.34,205.16,23.44788474]
[1738518094222,0.03310855,205.21,205.2,23.41093493]
[1738518094433,5.4635,205.35,205.2,23.41093493]
[1738518094434,28.18246158,205.39,205.2,23.41093493]
[1738518095028,23.41093493,205.33,205.1,23.41093493]
[1738518095531,23.41093493,205.29,205.1,23.41093493]
[1738518095830,0.03228358,205.24,205.19,0.03374926]
[1738518096026,0.98,205.38,205.23,23.41093493]
[1738518096330,27.20246158,205.39,205.23,23.41093493]
[1738518096635,0.98,205.44,205.27,23.41093493]
[1738518096837,0.98,205.44,205.31,23.41093493]
[1738518097040,23.41093493,205.49,205.31,23.41093493]
[1738518097332,0.03303623,205.4,205.35,0.03212376]
[1738518098034,0.03303623,205.4,205.35,23.44305869]
[1738518098229,0.03303623,205.4,205.35,0.03212376]
[1738518099633,4.90443623,205.4,205.35,0.03212376]
[1738518099834,0.03303623,205.4,205.35,0.03212376]
[1738518101733,5.79232971,205.4,205.35,0.03212376]
[1738518101933,23.41093493,205.38,205.35,0.03212376]
[1738518102142,0.88711166,205.37,205.35,0.03212376]
[1738518102342,5.75911166,205.37,205.35,0.03212376]
[1738518102640,23.41093493,205.38,205.35,0.03212376]
[1738518102641,1.86711166,205.36,205.35,0.03212376]
[1738518102833,1.86711166,205.36,205.27,4.8742]
[1738518103035,0.88711166,205.36,205.24,23.41093493]
[1738518103235,0.88711166,205.35,205.25,0.97442143]
[1738518103443,0.88711166,205.4,205.28,23.41093493]
[1738518103739,0.88667043,205.39,205.25,0.97442143]
[1738518103936,23.41093493,205.42,205.25,0.97442143]
[1738518104133,0.03538456,205.34,205.3,0.03682502]
[1738518105437,0.03538456,205.34,205.32,4.8729]
[1738518105643,8.456e-05,205.34,205.32,28.28383493]
[1738518106147,8.456e-05,205.34,205.3,0.03682502]
[1738518107049,4.8733,205.31,205.3,2.502e-05]
[1738518107242,5.76019918,205.31,205.3,2.502e-05]
[1738518107550,5.85278456,205.34,205.3,2.502e-05]
[1738518107743,0.8869903,205.33,205.3,2.502e-05]
[1738518107943,24.29792523,205.33,205.3,2.502e-05]
[1738518108147,0.8869903,205.32,205.3,2.502e-05]
[1738518108543,4.8732,205.32,205.3,2.502e-05]
[1738518108846,0.88638145,205.31,205.3,2.502e-05]
[1738518109247,0.98008456,205.34,205.3,2.502e-05]
[1738518109448,0.88653974,205.33,205.3,2.502e-05]
[1738518109647,0.98008456,205.34,205.3,2.502e-05]
[1738518109842,8.456e-05,205.34,205.3,2.502e-05]
[1738518110348,23.41093493,205.33,205.3,2.502e-05]
[1738518110545,23.41093493,205.28,205.09,132.20604003]
[1738518110746,23.41093493,205.21,205.09,132.20604003]
[1738518110948,23.41093493,205.21,205.1,166.48255004]
[1738518111148,23.41093493,205.25,205.1,166.48255004]
[1738518111346,23.41093493,205.17,205.1,166.48255004]
[1738518112144,23.41093493,205.13,205.05,199.63579747]
[1738518112345,28.28943493,205.09,205.08,166.18860787]
[1738518112551,28.28943493,205.09,205.08,78.62851832]
[1738518112754,28.28943493,205.09,205.08,70.15751832]
[1738518113050,4.8793,205.06,205.05,95.94023639]
[1738518113342,42.93023493,205.06,205.05,64.01493639]
[1738518113545,28.29023493,205.06,205.05,64.01493639]
[1738518113748,28.29023493,205.06,205.05,62.05493639]
[1738518114052,28.29023493,205.06,205.05,23.54333639]
[1738518114352,4.8802,205.02,204.94,266.1810633]
[1738518114548,57.74206986,205.02,204.94,266.1810633]
[1738518114746,57.74206986,205.02,205.01,138.3023464]
[1738518115245,57.74206986,205.02,205.01,83.0106464]
[1738518115552,57.74206986,205.02,205.01,51.86915685]
[1738518115949,4.8819,204.95,204.94,205.91942725]
[1738518116144,51.70376986,204.95,204.94,163.44692725]
[1738518116349,51.70376986,204.95,204.94,149.11282725]
[1738518116745,55.99058664,204.95,204.94,149.11282725]
[1738518116950,4.8833,204.89,204.75,58.16334979]
[1738518117150,23.41093493,204.9,204.88,86.48321342]
[1738518117547,4.28681678,204.89,204.88,86.48321342]
[1738518117948,85.77361041,204.89,204.87,0.03100273]
[1738518118149,23.41093493,205.05,204.87,0.03100273]
[1738518118349,0.03564525,204.91,204.88,3.92002085]
[1738518118749,23.41093493,205.01,204.88,3.92002085]
[1738518118945,6.14,205.0,204.88,3.92002085]
[1738518119150,0.03685699,204.92,204.88,3.92002085]
[1738518119649,655.82629076,204.89,204.88,3.92002085]
[1738518119853,655.82629076,204.89,204.88,3.95738613]
[1738518120653,655.82629076,204.89,204.88,0.03736528]
[1738518120952,198.73523963,204.89,204.78,3.92002085]
[1738518121155,198.73523963,204.89,204.71,3.92002085]
[1738518121346,198.73523963,204.89,204.78,23.41093493]
[1738518121743,198.73523963,204.89,204.86,23.41093493]
[1738518121947,198.73523963,204.89,204.87,4.8837]
[1738518122157,198.73523963,204.89,204.8,23.41093493]
[1738518122351,198.73523963,204.89,204.85,0.03384939]
[1738518122846,448.96115113,204.88,204.86,3.92002085]
[1738518123051,448.96115113,204.88,204.8,23.41093493]
[1738518123350,410.66005113,204.88,204.87,4.8837]
[1738518123553,210.04530922,204.88,204.87,4.8837]
[1738518123848,210.04530922,204.88,204.87,28.29463493]
[1738518124050,210.04530922,204.88,204.85,0.03178306]
[1738518124661,198.76986171,204.89,204.85,0.03178306]
[1738518124662,0.03462208,204.89,204.85,0.03178306]
[1738518124952,2.208e-05,204.89,204.87,23.41093493]
[1738518125255,367.32548536,204.94,204.87,23.41093493]
[1738518125748,337.28758536,204.94,204.91,23.41093493]
[1738518125950,198.73523963,204.94,204.92,4.8825]
[1738518126147,159.73933963,204.94,204.92,4.8825]
[1738518126753,159.73933963,204.94,204.91,0.03431714]
[1738518127255,0.03578532,204.95,204.91,0.03431714]
[1738518128052,23.44672025,204.95,204.78,23.41093493]
[1738518128247,4.8827,204.92,204.74,23.41093493]
[1738518128449,23.41093493,204.87,204.7,23.41093493]
[1738518129055,23.41093493,204.91,204.7,23.41093493]
[1738518129251,23.41093493,204.87,204.7,23.41093493]
[1738518129448,0.03552455,204.81,204.76,0.03677782]
[1738518129653,0.03552455,204.81,204.6,120.05093493]
[1738518130047,4.8855,204.8,204.6,124.94103493]
[1738518130252,23.41093493,204.79,204.6,120.05093493]
[1738518130450,4.8863,204.77,204.6,120.05093493]
[1738518130654,9.0851,204.82,204.6,120.05093493]
[1738518130858,23.41093493,204.79,204.6,120.05093493]
[1738518131054,0.03568174,204.71,204.66,0.0356064]
[1738518131449,0.03568174,204.71,204.6,23.41093493]
[1738518131856,0.03568174,204.71,204.66,0.03325578]
[1738518132059,23.44661667,204.71,204.52,23.41093493]
[1738518132252,23.41093493,204.71,204.52,23.41093493]
[1738518132555,23.41093493,204.75,204.56,23.41093493]
[1738518132761,23.41093493,204.79,204.6,23.41093493]
[1738518133056,1.22161429,204.78,204.6,23.41093493]
[1738518133260,4.21788953,204.78,204.6,23.41093493]
[1738518133460,0.03216407,204.72,204.67,0.03266295]
[1738518134055,4.21788953,204.78,204.67,0.03266295]
[1738518134056,4.21788953,204.78,204.69,4.888]
[1738518134257,4.21788953,204.77,204.68,23.41093493]
[1738518134453,4.21788953,204.77,204.67,0.03266295]
[1738518134661,4.21788953,204.77,204.64,23.41093493]
[1738518135461,0.03558256,204.73,204.68,0.03597611]
[1738518136658,0.03558256,204.73,204.6,7.07834612]
[1738518136856,0.03558256,204.73,204.56,23.41093493]
[1738518137063,23.41093493,204.76,204.52,23.41093493]
[1738518137265,3.0077,204.75,204.56,23.41093493]
[1738518137765,3.0077,204.75,204.5,23.41093493]
[1738518137766,3.0077,204.75,204.6,23.41093493]
[1738518138265,0.03721229,204.68,204.63,0.02925556]
[1738518138467,0.03721229,204.68,204.67,28.29953493]
[1738518138655,4.21788953,204.77,204.67,23.41093493]
[1738518139153,3.63258953,204.77,204.71,23.41093493]
[1738518139566,3.63258953,204.77,204.71,28.29833493]
[1738518139763,23.41093493,204.9,204.67,23.41093493]
[1738518139957,0.035124,204.76,204.72,0.03603486]
[1738518140163,23.41093493,204.9,204.75,23.41093493]
[1738518140368,53.09199926,204.87,204.79,23.41093493]
[1738518140556,53.09199926,204.87,204.83,23.41093493]
[1738518140757,53.09199926,204.87,204.84,4.8845]
[1738518140966,53.09199926,204.87,204.83,23.41093493]
[1738518141166,45.63209926,204.87,204.83,23.41093493]
[1738518141466,37.79879926,204.87,204.85,4.8842]
[1738518141660,37.83474258,204.87,204.85,4.8842]
[1738518141862,37.83474258,204.87,204.83,4.92025174]
[1738518142062,0.03594332,204.87,204.83,0.03565174]
[1738518142466,0.03594332,204.87,204.85,4.8842]
[1738518142662,0.03594332,204.87,204.83,0.03565174]